[Event "67th Mexican-ch Open 2022"]
[Site "Chihuahua"]
[Date "2022.04.15"]
[Round "4.26"]
[White "Salas Estrada, Ana Paola"]
[Black "Avila Fraire, Ameyalli"]
[Result "0-1"]
[ECO "B24"]
[WhiteElo "1654"]
[BlackElo "1955"]
[Annotator "TA"]
[PlyCount "80"]
[EventDate "2022.04.12"]
[EventType "swiss"]
[EventCountry "MEX"]
[SourceTitle "playchess.com"]
[Source "ChessBase"]
[SourceQuality "1"]
[TimeControl "5400+30"]

{[%evp 16,80,-28,-28,0,-20,-10,-33,-30,-72,19,10,8,0,0,-18,307,311,340,342,337,329,322,338,337,314,322,208,198,205,206,114,114,34,77,64,61,20,25,0,39,35,85,-227,-222,-643,-645,-692,-687,-760,-716,-921,-900,-879,-844,-1031,-1033,-29976,-29977,-29990,-29991,-29991,-29986,-29986,-29987,-29985,-5635]} 1. e4 {[%emt 0:08:29]} c5 {[%emt 0:00:06]} 2. Nc3 {[%emt 0:00:15]} Nc6 {[%emt 0:00:08]} 3. g3 {[%emt 0:00:28]} g6 {[%emt 0:01:19]} 4. Bg2 {[%emt 0:00:09]} Bg7 {[%emt 0:00:04]} 5. d3 {[%emt 0:00:12]} e6 {[%emt 0:01:13]} 6. f4 {[%emt 0:02:30]} Nge7 {[%emt 0:00:32]} 7. Nf3 {[%emt 0:04:25]} d5 {[%emt 0:04:22]} 8. O-O {[%emt 0:01:53]} O-O {[%emt 0:00:20]} 9. Bd2 {[%emt 0:18:21]} a6 {[%emt 0:01:18] [#] B24: Closed Sicilian: 3 g3 sidelines.} 10. Qc1 $146 {[%emt 0:03:18]} ({Predecessor:} 10. e5 Nf5 11. a3 b5 12. Kh1 Bb7 13. Rb1 f6 14. exf6 Bxf6 15. Ng5 Qd6 16. Re1 {0-1 (45) Kotronias,V (2505)-Wang,J (2363) Divcibare 2018}) 10... b5 {[%emt 0:06:53]} 11. Nh4 {[%emt 0:13:58][%cal Of4f5]} Nd4 {[%emt 0:01:58] Black is slightly better.} 12. Qd1 {[%emt 0:02:43]} f5 {[%emt 0:17:30]} (12... Bb7 $17) 13. e5 $11 {[%emt 0:03:17]} Bb7 {[%emt 0:06:22]} 14. Be3 {[%emt 0:06:12][%cal Bd2e3,Be3d4,Bd4c5,Bc5d6][%mdl 32]} Nec6 {[%emt 0:05:25]} 15. Nb1 {[%emt 0:03:20] Black must now prevent c3.} Nb4 $2 {[%emt 0:21:02][%mdl 8192]} (15... g5 $1 $11) 16. c3 $1 $18 {[%emt 0:06:08][%csl LRb4,LRd4]} Nbc2 {[%emt 0:04:48]} 17. Bxd4 {[%emt 0:01:01]} Nxa1 {[%emt 0:00:36]} 18. Bxc5 {[%emt 0:00:13]} Rf7 {[%emt 0:01:28]} 19. Nd2 {[%emt 0:02:01]} Rc8 {[%emt 0:00:05]} 20. Bd6 {[%emt 0:07:10]} b4 {[%emt 0:01:29]} 21. Bxb4 {[%emt 0:01:17] Strongly threatening Ndf3.} Nc2 {[%emt 0:00:08]} 22. Qxc2 {[%emt 0:04:05]} Qb6+ {[%emt 0:00:08]} 23. Kh1 {[%emt 0:06:28]} (23. Rf2 $1 $18 Qxb4 24. Nc4 $1 {[%mdl 512]}) 23... Qxb4 $16 {[%emt 0:00:07] [#]} 24. Nb3 {[%emt 0:00:54]} ({Better is} 24. Nc4 $1 $16 {[%mdl 512]} Rxc4 25. dxc4 (25. cxb4 $2 {perishes.} Rxc2 26. Rb1 Rfc7 $19) 25... Qxc4 26. Qb3) 24... Rfc7 {[%emt 0:03:41][%cal Bf7c7,Bc7c3,Bc3c2,Bc2b2][%mdl 32]} 25. Nf3 {[%emt 0:01:27]} Qb6 {[%emt 0:02:52]} 26. Qe2 {[%emt 0:01:59]} a5 {[%emt 0:01:19]} 27. Nbd4 {[%emt 0:01:06]} (27. Qf2 $5 {[%cal Rf2b6]} Qa6 28. a4 $11) 27... h6 {[%emt 0:00:29]} (27... a4 $5 {[%cal Ra4a3]}) 28. Nh4 {[%emt 0:00:33] And now g4 would win. Pair of Knights!} Kh7 {[%emt 0:00:47] [#]} 29. Rb1 $2 {[%emt 0:00:34][%mdl 8192]} (29. g4 $1 $16 {[%cal Rg4f5] and life is bright.} Rg8 30. Bh3) 29... Rxc3 $1 $19 {[%emt 0:01:27][%mdl 64] aiming for ...Rc1+. Pin} 30. Ndf3 $2 {[%emt 0:00:33]} (30. Qd1 R3c7 31. Nhf3) 30... Rc2 {[%emt 0:00:56]} 31. Qf1 {[%emt 0:00:30]} Rxb2 {[%emt 0:00:24]} 32. Rd1 {[%emt 0:00:30]} Rcc2 {[%emt 0:00:39] Hoping for ...Rf2.} 33. d4 {[%emt 0:00:29]} Ba6 {[%emt 0:02:17]} 34. Qg1 {[%emt 0:00:15]} Rxa2 {[%emt 0:00:23] Threatens to win with ...Be2.} 35. Bh3 {[%emt 0:00:40]} Be2 {[%emt 0:01:46]} 36. g4 {[%emt 0:00:35]} Bxd1 {[%emt 0:00:31] Black mates.} 37. Qxd1 {[%emt 0:00:29]} Qb2 {[%emt 0:00:09]} 38. Qg1 {[%emt 0:00:19]} Ra1 {[%emt 0:00:33]} 39. Ne1 {[%emt 0:00:43] [#]} Rxe1 $1 {[%emt 0:01:18]} 40. Qxe1 {[%emt 0:00:26]} Rc1 {[%emt 0:13:38] Quite a comeback for Black.  Weighted Error Value: White=0.78/Black=0.31} (40... Rxh2+ $142 41. Kg1 Rxh3 42. gxf5 Qh2+ 43. Kf1 Qh1+ 44. Ke2 Qe4+ 45. Kf2 Rh2+ 46. Kg3 Qxe1+ 47. Kxh2 Qxh4+ 48. Kg1 gxf5 49. Kg2 Qxf4 50. Kg1 a4 51. Kh1 a3 52. Kg1 a2 53. Kg2 a1=Q 54. Kh3 Qh1#) 0-1

[Event "67th Mexican-ch Open 2022"]
[Site "Chihuahua"]
[Date "2022.04.15"]
[Round "5.1"]
[White "Cordova, Emilio"]
[Black "Salinas Herrera, Pablo"]
[Result "1/2-1/2"]
[ECO "A07"]
[WhiteElo "2534"]
[BlackElo "2517"]
[Annotator "TA"]
[PlyCount "74"]
[EventDate "2022.04.12"]
[EventType "swiss"]
[EventCountry "MEX"]
[SourceTitle "playchess.com"]
[Source "ChessBase"]
[SourceQuality "1"]
[TimeControl "5400+30"]

{[%evp 9,74,14,13,10,18,22,18,28,21,12,21,24,24,28,24,-25,-26,-15,-25,-16,-17,-16,-4,-25,-12,-17,-3,-7,-5,-2,-16,-13,-15,-15,-15,-22,-13,-14,0,0,-18,-16,-22,-16,-16,-9,-21,-8,-19,-45,0,0,0,-12,0,0,0,0,0,-8,-7,-37,0,0,0,0,4]} 1. Nf3 {[%emt 0:00:56]} d5 {[%emt 0:00:37]} 2. g3 {[%emt 0:00:30]} Bg4 {[%emt 0:00:30]} 3. Bg2 {[%emt 0:00:30]} e6 {[%emt 0:00:30]} 4. d3 {[%emt 0:00:30]} Nf6 {[%emt 0:00:30]} 5. O-O {[%emt 0:00:30]} Be7 {[%emt 0:00:30]} 6. Nbd2 {[%emt 0:00:30] A07: Réti Opening: New York and Capablanca Systems.} O-O {[%emt 0:00:30]} 7. h3 {[%emt 0:00:30]} Bh5 {[%emt 0:00:30]} 8. g4 {[%emt 0:00:30]} Bg6 {[%emt 0:00:30]} 9. Ne5 {[%emt 0:00:30]} Nbd7 {[%emt 0:00:30]} 10. Nxg6 {[%emt 0:00:30]} hxg6 {[%emt 0:00:30]} 11. e3 {[%emt 0:00:30]} c6 {[%emt 0:00:30]} 12. f4 {[%emt 1:30:34] [#]} (12. h4 {was preferrable.}) 12... e5 $146 ({Predecessor:} 12... a5 13. Qe1 a4 14. a3 Qc7 15. g5 Ne8 16. h4 e5 17. f5 gxf5 18. Rxf5 Nd6 {1-0 (43) Meyer,P (2350)-Abel,T (2400) Germany 1999}) 13. fxe5 {[%emt 0:00:00]} Nxe5 {[%emt 0:11:30]} 14. d4 {[%emt 0:00:00]} Ned7 {[%emt 0:00:09]} 15. c4 {[%emt 0:00:00]} Bb4 {[%emt 0:19:35]} 16. a3 {[%emt 0:00:00]} Bxd2 {[%emt 0:07:47]} 17. Bxd2 {[%emt 0:00:00]} Re8 {[%emt 0:00:16]} 18. cxd5 {[%emt 0:00:00]} cxd5 {[%emt 0:00:09]} 19. Qf3 {[%emt 0:00:00] [#] aiming for g5.} Qe7 {[%emt 0:01:00]} 20. Qf4 {[%emt 0:00:00]} Nb6 {[%emt 0:04:00]} 21. b3 {[%emt 0:00:00] Inhibits Nc4.} Rac8 {[%emt 0:00:23]} 22. Ra2 {[%emt 0:00:00] Against Rc2} Ne4 {[%emt 0:02:13]} 23. Bb4 {[%emt 0:00:00]} Qc7 {[%emt 0:05:24]} 24. Qxc7 {[%emt 0:00:00]} Rxc7 {[%emt 0:03:22]} 25. a4 {[%emt 0:00:00]} Nd7 {[%emt 0:02:09][%cal Bb6d7,Bd7f6,Bf6h7][%mdl 32]} 26. Raa1 {[%emt 0:04:25]} Ndf6 {[%emt 0:03:09]} 27. Rfc1 {[%emt 0:01:19]} Rec8 {[%emt 0:00:24]} 28. Rxc7 {[%emt 0:00:32]} Rxc7 {[%emt 0:00:05]} 29. Bf1 {[%emt 0:00:29]} Nh7 {[%emt 0:08:50]} (29... Rc2 $5 {[%cal Rc2b2]}) 30. Bd3 {[%emt 0:00:34]} f5 {[%emt 0:00:10]} 31. Ba5 {[%emt 0:00:32] This bishop pair is nice.} Rc8 {[%emt 0:01:00]} 32. Kg2 {[%emt 0:00:36]} Nhf6 {[%emt 0:00:24]} 33. gxf5 {[%emt 0:00:17]} gxf5 {[%emt 0:00:05]} 34. Be1 {[%emt 0:00:08]} Kf7 {[%emt 0:00:24]} 35. Bb4 {[%emt 0:00:49]} Ke6 {[%emt 0:00:10]} 36. Ra2 {[%emt 0:00:37]} Rc1 {[%emt 0:02:40]} 37. Rc2 {[%emt 0:00:03]} Rxc2+ {[%emt 0:01:55] An even fight not without its subleties.  Weighted Error Value: White=0.05 (flawless) /Black=0.06 (flawless)} 1/2-1/2

[Event "67th Mexican-ch Open 2022"]
[Site "Chihuahua"]
[Date "2022.04.15"]
[Round "5.3"]
[White "Galaviz Medina, Sion Radamantys"]
[Black "Gonzalez Zamora, Juan Carlos"]
[Result "0-1"]
[ECO "E32"]
[WhiteElo "2374"]
[BlackElo "2544"]
[Annotator "TA"]
[PlyCount "120"]
[EventDate "2022.04.12"]
[EventType "swiss"]
[EventCountry "MEX"]
[SourceTitle "playchess.com"]
[Source "ChessBase"]
[SourceQuality "1"]
[TimeControl "5400+30"]

{[%evp 12,120,32,28,25,25,20,20,35,22,39,48,54,50,53,66,76,74,85,75,83,29,89,99,87,34,42,41,102,83,108,99,106,90,100,-24,-21,-8,-7,-10,54,0,0,0,0,0,2,-2,-7,-12,-19,-48,-47,-56,-16,-19,-18,-19,-20,-20,-7,-15,0,-25,-1,-2,0,-17,-12,-17,-8,-9,-6,-18,-21,-7,0,0,0,0,0,0,0,0,0,0,0,0,0,-8,0,0,0,0,0,0,0,0,0,0,0,-8,-8,-8,-74,-4622,-4133,-29982,-29983,-29983,-29984]} 1. d4 {[%emt 0:00:02]} Nf6 {[%emt 0:04:19]} 2. c4 {[%emt 0:00:07]} e6 {[%emt 0:00:05]} 3. Nc3 {[%emt 0:00:05]} Bb4 {[%emt 0:00:05]} 4. Qc2 {[%emt 0:00:07]} O-O {[%emt 0:00:24]} 5. Bg5 {[%emt 0:01:59]} h6 {[%emt 0:00:57]} 6. Bh4 {[%emt 0:02:30]} d6 {[%emt 0:07:33]} 7. e3 {[%emt 0:01:06]} b6 {[%emt 0:03:20] E32: Nimzo-Indian: Classical (4 Qc2): 4...0-0.} 8. Bd3 {[%emt 0:02:19]} Bb7 {[%emt 0:00:59]} 9. f3 {[%emt 0:01:23]} c5 {[%emt 0:00:29] The position is equal.} 10. Nge2 {[%emt 0:05:12]} Bxc3+ {[%emt 0:11:14]} 11. Qxc3 {[%emt 0:09:44]} Nbd7 {[%emt 0:00:36]} 12. O-O {[%emt 0:10:34]} Rc8 {[%emt 0:01:48]} 13. Qa3 {[%emt 0:05:45]} a6 {[%emt 0:02:37]} 14. Rad1 {[%emt 0:00:54] [#]} Re8 $146 {[%emt 0:00:15]} ({Predecessor:} 14... Qe7 15. Bb1 Rfd8 16. Qd3 Nf8 17. Qb3 b5 18. dxc5 Rxc5 19. cxb5 Rxb5 20. Qa3 Ng6 21. Bxg6 fxg6 {½-½ (32) Savva,P (1980)-Damianou,I (2176) Nicosia 2022}) 15. Nc3 {[%emt 0:02:37]} Qc7 {[%emt 0:04:51]} 16. Bg3 {[%emt 0:13:00]} (16. Rfe1 $16) 16... e5 {[%emt 0:08:41]} (16... Nh5 $1 $11) 17. Bf5 $16 {[%emt 0:06:50]} Rcd8 {[%emt 0:02:52]} 18. Bh4 {[%emt 0:01:32]} (18. dxc5 $16 {[%cal Oc5c6] Threatens to win with c6!} Nxc5 19. Bh4) 18... cxd4 $14 {[%emt 0:04:58]} 19. exd4 {[%emt 0:00:06]} exd4 {[%emt 0:14:45]} (19... Qxc4 $14 20. Qxd6 Nf8 21. Qxb6 exd4) 20. Rxd4 $16 {[%emt 0:03:52]} Ne5 {[%emt 0:06:00]} 21. b3 {[%emt 0:07:41]} b5 {[%emt 0:01:04][%cal Ob5b4] [#] ...b4! is the strong threat.} 22. Bxf6 {[%emt 0:09:37]} gxf6 {[%emt 0:00:10]} 23. Rh4 {[%emt 0:00:15]} (23. Qc1 $16 Qc5 24. Qd2 (24. Qf4 Kg7 $11)) 23... Qb6+ $11 {[%emt 0:05:45]} 24. Kh1 $132 {[%emt 0:00:56][%mdl 2048] aiming for Qc1. White is not holding back} Qe3 {[%emt 0:02:32]} 25. Qc1 {[%emt 0:05:57] [#]} ({But not} 25. cxb5 Qxc3 26. bxa6 Ra8 27. Qxd6 (27. a7 $2 Ng6 $19) 27... Rxa6 $17) 25... Qg5 {[%emt 0:04:45]} ({Black should try} 25... Nxf3 $1 $11 26. Rg4+ (26. Rxh6 $2 Nd2 $19) (26. Qxe3 Rxe3) 26... Kf8) 26. Qxg5+ {[%emt 0:03:58]} (26. Rf4 $1 $14) 26... hxg5 {[%emt 0:02:10]} 27. Rd4 {[%emt 0:00:05]} bxc4 {[%emt 0:00:42]} 28. bxc4 {[%emt 0:00:06]} Kg7 {[%emt 0:00:23]} 29. Rb1 {[%emt 0:03:12]} Bc8 {[%emt 0:00:41]} 30. Bxc8 {[%emt 0:02:04]} Rxc8 {[%emt 0:00:09]} 31. Rxd6 {[%emt 0:00:14]} Nxc4 {[%emt 0:00:09]} 32. Rd3 {[%emt 0:00:40]} ({Don't go for} 32. Rxa6 $2 Nd2 33. Rd1 Rxc3 $19) 32... Rb8 {[%emt 0:03:24]} 33. Rdd1 {[%emt 0:01:11]} Rb2 {[%emt 0:01:56]} 34. Rxb2 {[%emt 0:00:36]} Nxb2 {[%emt 0:00:09][%mdl 4096] Endgame KRN-KRN} 35. Rb1 {[%emt 0:00:01]} Nd3 {[%emt 0:02:16]} 36. h3 {[%emt 0:00:14]} f5 {[%emt 0:00:17]} 37. Kh2 {[%emt 0:01:07]} Re5 {[%emt 0:02:02]} 38. Rb6 {[%emt 0:00:19]} Re6 {[%emt 0:00:52]} 39. Rb3 {[%emt 0:00:52]} Nf4 {[%emt 0:01:11]} 40. Rb2 {[%emt 0:00:18]} Re1 {[%emt 0:01:09]} 41. Rd2 {[%emt 0:00:24]} Re5 {[%emt 0:00:28]} 42. Kg3 {[%emt 0:00:47]} Rc5 {[%emt 0:00:59]} 43. Ne2 {[%emt 0:00:13]} Nxe2+ {[%emt 0:00:29]} 44. Rxe2 {[%emt 0:00:03] KR-KR} Ra5 {[%emt 0:00:04]} 45. h4 {[%emt 0:00:41]} f6 {[%emt 0:00:30]} 46. hxg5 {[%emt 0:00:23]} fxg5 {[%emt 0:00:06]} 47. Kf2 {[%emt 0:00:13]} Kf6 {[%emt 0:00:10]} 48. Kg3 {[%emt 0:00:28]} Ra3 {[%emt 0:00:14]} 49. Kf2 {[%emt 0:00:42]} a5 {[%emt 0:00:10]} 50. Rb2 {[%emt 0:00:09]} f4 {[%emt 0:00:55]} 51. g3 {[%emt 0:01:47]} Ke5 {[%emt 0:00:35]} 52. Re2+ {[%emt 0:00:28]} Kd5 {[%emt 0:00:49]} 53. gxf4 {[%emt 0:00:04]} gxf4 {[%emt 0:00:06]} 54. Kg2 {[%emt 0:00:21]} a4 {[%emt 0:00:25]} 55. Rd2+ {[%emt 0:00:29]} Kc4 {[%emt 0:00:15]} 56. Rf2 {[%emt 0:01:20]} Kd3 {[%emt 0:00:59]} 57. Rb2 {[%emt 0:00:46]} Ke3 {[%emt 0:00:38] Hoping for ...Rd3.} 58. Rf2 $2 {[%emt 0:00:28][%mdl 8192]} (58. Rc2 $17) 58... Rd3 $19 {[%emt 0:00:21] ( -> ...Rd2)} 59. Rb2 {[%emt 0:00:24]} Rd2+ {[%emt 0:00:53]} 60. Rxd2 {[%emt 0:00:05]} Kxd2 {[%emt 0:00:02] Weighted Error Value: White=0.31/Black=0.07 (flawless)} 0-1

[Event "67th Mexican-ch Open 2022"]
[Site "Chihuahua"]
[Date "2022.04.15"]
[Round "5.4"]
[White "Mareco, Sandro"]
[Black "Sandoval Mercado, Carlos"]
[Result "1-0"]
[ECO "A59"]
[WhiteElo "2643"]
[BlackElo "2289"]
[Annotator "TA"]
[PlyCount "89"]
[EventDate "2022.04.12"]
[EventType "swiss"]
[EventCountry "MEX"]
[SourceTitle "playchess.com"]
[Source "ChessBase"]
[SourceQuality "1"]
[TimeControl "5400+30"]

{[%evp 24,89,83,60,102,110,104,105,99,107,105,85,98,78,133,140,149,152,159,139,166,165,235,233,246,237,236,229,289,289,293,281,306,298,308,202,202,190,476,459,480,477,473,473,473,473,472,435,502,502,478,478,2551,2531,1510,1244,6867,390,6867,6079,6320,5971,5708,5420,6867,6867,4133,3987]} 1. d4 {[%emt 0:00:02]} Nf6 {[%emt 0:00:41]} 2. c4 {[%emt 0:00:04]} c5 {[%emt 0:02:37]} 3. d5 {[%emt 0:00:04]} b5 {[%emt 0:00:06]} 4. cxb5 {[%emt 0:00:25]} a6 {[%emt 0:00:06]} 5. bxa6 {[%emt 0:00:04]} g6 {[%emt 0:00:12]} 6. Nc3 {[%emt 0:00:04]} Bxa6 {[%emt 0:00:05]} 7. e4 {[%emt 0:00:11]} Bxf1 {[%emt 0:00:06]} 8. Kxf1 {[%emt 0:00:03]} d6 {[%emt 0:00:06]} 9. g3 {[%emt 0:00:07]} Bg7 {[%emt 0:00:07]} 10. Kg2 {[%emt 0:00:03]} O-O {[%emt 0:00:37]} 11. Nf3 {[%emt 0:00:07]} Nbd7 {[%emt 0:00:10]} 12. a4 {[%emt 0:00:59] is now debated instead of 12.Re1.} Qb6 {[%emt 0:00:29]} 13. Qc2 {[%emt 0:02:32]} Rfb8 {[%emt 0:06:41] A59: Benko/Volga Gambit: White castles by hand.} 14. Nb5 {[%emt 0:01:56]} Ne8 {[%emt 0:03:57]} 15. Bd2 {[%emt 0:17:44]} Nc7 {[%emt 0:09:08] White is better.} 16. Nxc7 {[%emt 0:00:08] &Bianco is more active.} Qxc7 {[%emt 0:00:04]} 17. Rab1 {[%emt 0:00:13]} Qa7 {[%emt 0:16:21]} 18. b3 {[%emt 0:00:28] [#]} Rc8 $146 {[%emt 0:00:14]} (18... Qa6 $142) ({Predecessor:} 18... Qa6 19. Rhc1 Rb7 20. h4 h6 21. Re1 c4 22. bxc4 Rxb1 23. Rxb1 Qxa4 24. Qxa4 Rxa4 {½-½ (37) Diermair,A (2461)-Spindelboeck,G (2246) Bad Gleichenberg 2014}) 19. a5 $16 {[%emt 0:11:42]} Qb7 {[%emt 0:22:41]} 20. Rhc1 {[%emt 0:01:19]} f5 {[%emt 0:10:08]} 21. Re1 {[%emt 0:16:21]} fxe4 {[%emt 0:18:06]} 22. Qxe4 {[%emt 0:00:41]} e5 {[%emt 0:00:03]} (22... Nf6 {was worth a try.} 23. Qe6+ (23. Qxe7 Qxd5 24. Bf4 Re8 $16) 23... Kh8) 23. dxe6 $18 {[%emt 0:01:04]} Qxe4 {[%emt 0:00:05]} 24. Rxe4 {[%emt 0:00:05]} Nf6 {[%emt 0:00:01]} 25. Re2 {[%emt 0:13:07]} d5 {[%emt 0:00:16]} 26. Rd1 {[%emt 0:04:37]} Rcb8 {[%emt 0:03:13]} 27. e7 {[%emt 0:06:31]} Rxb3 {[%emt 0:03:07]} 28. Bg5 {[%emt 0:00:06] [#] aiming for Bxf6.} Re8 {[%emt 0:00:06]} 29. Bxf6 {[%emt 0:02:25]} Bxf6 {[%emt 0:00:01]} 30. Rxd5 {[%emt 0:00:07]} c4 $2 {[%emt 0:04:08]} (30... Rxe7 {keeps fighting.} 31. Rc2 Ra3 32. Rcxc5 (32. Rdxc5 Ra7 $18) 32... Kg7) 31. Nd2 {[%emt 0:03:53]} Rb2 {[%emt 0:01:40] [#]} 32. Ne4 $1 {[%emt 0:06:22][%mdl 512]} Rxe2 {[%emt 0:00:24]} 33. Nxf6+ {[%emt 0:00:05]} Kf7 {[%emt 0:00:03]} 34. Nxe8 {[%emt 0:00:03]} Kxe8 {[%emt 0:01:01][%mdl 4096] Endgame KR-KR} 35. Rc5 {[%emt 0:00:04]} Ra2 {[%emt 0:00:38]} 36. Rxc4 {[%emt 0:00:14]} Kxe7 {[%emt 0:00:28]} 37. Rc7+ {[%emt 0:00:50]} Kf6 {[%emt 0:00:05]} (37... Kf8 $142 38. Ra7 Ke8) 38. Rxh7 {[%emt 0:00:07]} Rxa5 {[%emt 0:00:02]} 39. h4 {[%emt 0:00:13] Hoping for g4.} Rb5 {[%emt 0:00:06]} 40. Ra7 $2 {[%emt 0:00:08]} (40. g4 Re5 41. Kg3) 40... Rb2 $2 {[%emt 0:00:13]} (40... Rb4 41. Rc7 Ra4) 41. g4 {[%emt 0:00:45][%cal Bg3g4,Bg4g5][%mdl 32] White is clearly winning.} Rb3 {[%emt 0:00:15]} 42. f3 {[%emt 0:00:05]} Rb2+ {[%emt 0:00:12]} 43. Kg3 {[%emt 0:00:04]} Rb3 {[%emt 0:00:03]} 44. g5+ {[%emt 0:02:14]} Ke5 {[%emt 0:00:21]} 45. Ra6 {[%emt 0:00:06] Black did not feel at home in the position after the opening.  Weighted Error Value: White=0.39/Black=0.44} 1-0

[Event "67th Mexican-ch Open 2022"]
[Site "Chihuahua"]
[Date "2022.04.15"]
[Round "5.5"]
[White "Diaz Villagran, Robert"]
[Black "Hernandez Guerrero, Gilberto"]
[Result "1/2-1/2"]
[ECO "A08"]
[WhiteElo "2318"]
[BlackElo "2564"]
[Annotator "TA"]
[PlyCount "94"]
[EventDate "2022.04.12"]
[EventType "swiss"]
[EventCountry "MEX"]
[SourceTitle "playchess.com"]
[Source "ChessBase"]
[SourceQuality "1"]
[TimeControl "5400+30"]

{[%evp 14,94,0,-2,10,12,17,17,13,13,15,13,21,19,17,0,8,4,4,2,7,7,22,13,13,0,0,5,23,7,44,45,48,41,100,93,91,90,81,11,0,0,6,-78,-108,-66,0,-7,43,-23,-28,-29,-31,-36,-18,-11,-7,-8,-8,-34,-12,-82,-74,-95,-79,-94,-33,-22,-25,-30,-6,-16,0,0,0,0,0,0,0,-7,8,8,8]} 1. e4 {[%emt 0:03:11]} e6 {[%emt 0:00:16]} 2. d3 {[%emt 0:01:33]} d5 {[%emt 0:00:57]} 3. Nd2 {[%emt 0:00:06]} c5 {[%emt 0:00:23]} 4. Ngf3 {[%emt 0:00:08]} Nc6 {[%emt 0:00:09]} 5. g3 {[%emt 0:00:13]} g6 {[%emt 0:00:11]} 6. Bg2 {[%emt 0:00:18]} Bg7 {[%emt 0:00:08]} 7. O-O {[%emt 0:00:21]} Nge7 {[%emt 0:00:09]} 8. c3 {[%emt 0:03:47]} h6 {[%emt 0:00:23] A08: King's Indian Attack.} 9. exd5 {[%emt 0:04:56]} exd5 {[%emt 0:01:03]} 10. Nb3 {[%emt 0:00:49]} b6 {[%emt 0:00:27]} 11. d4 {[%emt 0:00:08]} c4 {[%emt 0:00:44]} 12. Nbd2 {[%emt 0:00:13][%cal Bb3d2,Bd2f1,Bf1e3][%mdl 32]} Be6 {[%emt 0:05:18]} 13. Re1 {[%emt 0:01:19]} O-O {[%emt 0:03:14]} 14. Nf1 {[%emt 0:03:40]} Qd7 {[%emt 0:01:19]} 15. h4 {[%emt 0:01:16]} Rfe8 {[%emt 0:04:21]} 16. Bf4 {[%emt 0:02:26] [#]} f6 $146 {[%emt 0:01:13]} ({Predecessor:} 16... b5 17. Qd2 Kh7 18. Ne3 a5 19. Re2 Nf5 20. Rae1 Nxe3 21. Rxe3 Bf5 {1-0 (63) Morcin,T (2291)-Sciarretta,R (2198) LSS email 2017}) 17. Bd2 {[%emt 0:15:31]} a6 {[%emt 0:05:31]} 18. Ne3 {[%emt 0:02:55]} b5 {[%emt 0:00:37]} 19. Kh2 {[%emt 0:01:44]} Rab8 {[%emt 0:04:14]} 20. Ng1 {[%emt 0:00:37]} b4 {[%emt 0:09:08]} 21. Bh3 {[%emt 0:02:56]} bxc3 {[%emt 0:02:33]} 22. Bxe6+ {[%emt 0:00:39]} Qxe6 {[%emt 0:00:16]} 23. bxc3 {[%emt 0:00:33]} Qd7 {[%emt 0:03:04]} (23... Qf7 $14) 24. Qf3 {[%emt 0:02:44]} g5 {[%emt 0:01:05]} 25. Re2 {[%emt 0:05:41]} Rf8 {[%emt 0:05:34]} 26. g4 {[%emt 0:08:17]} (26. Rae1 $16) 26... f5 {[%emt 0:09:57]} 27. gxf5 {[%emt 0:00:28]} Nxf5 {[%emt 0:01:30]} 28. Qxd5+ {[%emt 0:05:36]} (28. Nxf5 $11 Qxf5 29. Qxf5 Rxf5 30. hxg5) 28... Qxd5 $17 {[%emt 0:00:07]} 29. Nxd5 {[%emt 0:00:08] [#]} Nxh4 {[%emt 0:00:17]} ({Better is} 29... Ncxd4 $1 $15 30. cxd4 Nxd4) 30. Rae1 {[%emt 0:05:13]} Rb7 {[%emt 0:06:30]} ({Black should try} 30... Rbd8 $11 31. Ne3 Bxd4 $1 32. cxd4 Nxd4) 31. f4 {[%emt 0:03:49]} (31. Kh3 $14) 31... Rf5 $1 $11 {[%emt 0:00:58]} 32. Ne3 {[%emt 0:09:55][%csl LRc4,LRf5]} Rxf4 {[%emt 0:01:01][%cal Og7d4] Strongly threatening ...Bxd4!} 33. Nxc4 {[%emt 0:00:02]} Rf8 {[%emt 0:00:09]} 34. Kh3 {[%emt 0:01:22]} Rc7 {[%emt 0:06:40][%cal Oc6d4]} 35. Nd6 {[%emt 0:00:50]} Na5 {[%emt 0:01:09]} 36. Ne8 {[%emt 0:01:15]} Rc8 {[%emt 0:01:56]} 37. Re7 {[%emt 0:00:35] [#]} (37. Nd6 $11 Rc6 38. Re6) 37... Nf5 $1 $17 {[%emt 0:06:47]} 38. R7e6 {[%emt 0:05:52]} Nc4 {[%emt 0:00:47]} 39. Bc1 {[%emt 0:00:01] [#]} a5 {[%emt 0:01:04]} (39... Ne5 $1 $17 40. dxe5 (40. Nxg7 $2 Rxc3+ 41. Kg2 Rc2+ 42. Re2 Nh4+ 43. Kh2 Ng4+ 44. Kg3 Rxc1 $19) 40... Rfxe8 41. Rxe8+ Rxe8) 40. Kg4 $15 {[%emt 0:00:24] [#]} Nfe3+ $1 {[%emt 0:04:29]} 41. Bxe3 {[%emt 0:00:20] The board is on fire.} Rfxe8 {[%emt 0:03:40]} 42. Bc1 {[%emt 0:00:12] The position is equal.} Kf7 {[%emt 0:01:50]} 43. Rxe8 {[%emt 0:04:23]} Rxe8 {[%emt 0:00:05]} 44. Rxe8 {[%emt 0:00:06]} Kxe8 {[%emt 0:00:04]} 45. Kf5 {[%emt 0:02:14]} Kf7 {[%emt 0:00:16] ...Nd6+ is the strong threat.} 46. Ke4 $1 {[%emt 0:00:03]} Ke6 {[%emt 0:01:00]} 47. Kd3 {[%emt 0:00:04]} Kd5 {[%emt 0:02:16] Weighted Error Value: White=0.12 (very precise) /Black=0.11 (very precise)} 1/2-1/2